Workbook

Sheet 11-18 лет
A1: СОГЛАСОВАНО | O1: УТВЕРЖДЕНО
O2: ООО "КРЕПЫШ"
O3: _______________________Ефремов В.Ю.
A6: Меню для организации питания детей возрасте от 11 до 18 лет в образовательных учреждениях Мензелинского района РТ на 2 полугодие 2022-2023 учебный год.
A8: 1 день, 1 неделя
A9: № рецептуры | B9: Прием пищи, наименование блюда | C9: Масса | D9: Пищевые вещества | G9: Энергетическая ценность | H9: Витамины | M9: Минеральные вещества
D10: Белки | E10: Жиры | F10: Углеводы | H10: B1 | I10: B2 | J10: A | K10: D | L10: C | M10: Na | N10: K | O10: Ca | P10: Mg | Q10: P | R10: Fe | S10: I | T10: Se | U10: F
C11: г | D11: г | E11: г | F11: г | G11: ккал | H11: мг | I11: мг | J11: мкг рет.экв | K11: мкг | L11: мг | M11: мг | N11: мг | O11: мг | P11: мг | Q11: мг | R11: мг | S11: мкг | T11: мкг | U11: мкг
B12: Понедельник, 1 неделя
B13: Горячий завтрак | C13: 11-18
A14: 54-7з | B14: Салат из белокочанной капусты с растительным маслом | C14: 100 | D14: 2.52 | E14: 10.15 | F14: 10.39 | G14: 143 | H14: 0.03 | I14: 0.05 | J14: 122.25 | K14: 0 | L14: 23 | M14: 112 | N14: 343 | O14: 59 | P14: 21 | Q14: 44 | R14: 0.9 | S14: 17.88 | T14: 0.3 | U14: 21.1
A15: № Т/к 100 | B15: Суп картофельный с вермишелью | C15: 250 | D15: 2.8 | E15: 2.8 | F15: 20.2 | G15: 118 | H15: 0.1 | I15: 0 | J15: 0.2 | K15: 0 | L15: 6.6 | M15: 0 | N15: 0 | O15: 23.9 | P15: 23.4 | Q15: 57.7 | R15: 1.1 | S15: 0 | T15: 0 | U15: 0
A16: № Т/К 399 | B16: Блины фаршированные сгущенным молоком П/Ф (70гр) 2 шт | C16: 140 | D16: 5.6 | E16: 7.7 | F16: 37.8 | G16: 245 | H16: 0.16 | I16: 0 | J16: 0 | K16: 0 | L16: 0 | M16: 0 | N16: 0 | O16: 196.9 | P16: 38.48 | Q16: 85 | R16: 0.96 | S16: 0 | T16: 0 | U16: 0
A17: 54-4гн-2020 | B17: Чай с молоком и сахаром | C17: 200 | D17: 1.6 | E17: 1.1 | F17: 8.6 | G17: 50.9 | H17: 0.01 | I17: 0.07 | J17: 6.9 | K17: 0 | L17: 0.3 | M17: 19.68 | N17: 81.35 | O17: 103.48 | P17: 9.92 | Q17: 46.33 | R17: 0.78 | S17: 4.5 | T17: 0.88 | U17: 10
A18: Пром. | B18: Хлеб ржаной | C18: 20 | D18: 1.3 | E18: 0.2 | F18: 6.7 | G18: 34.2 | H18: 0.04 | I18: 0.02 | J18: 0 | K18: 0 | L18: 0 | M18: 122 | N18: 49 | O18: 7 | P18: 9.4 | Q18: 31.6 | R18: 0.78 | S18: 0 | T18: 6.18 | U18: 0
B19: Итого за Завтрак | C19: =SUM(C14:C18) -> 710 | D19: =SUM(D14:D18) -> 13.82 | E19: =SUM(E14:E18) -> 21.95 | F19: 83.69 | G19: 591.1 | H19: 0.34 | I19: 0.14 | J19: 129.35 | K19: 0 | L19: 29.9 | M19: 253.68 | N19: 473.35 | O19: 390.28 | P19: 102.2 | Q19: 264.63 | R19: 4.52 | S19: 22.38 | T19: 7.36 | U19: 31.1
B20: Итого за день | C20: =C19 -> 710 | D20: =D19 -> 13.82 | E20: 21.95 | F20: 83.69 | G20: 591.1 | H20: 0.34 | I20: 0.14 | J20: 129.35 | K20: 0 | L20: 29.9 | M20: 253.68 | N20: 473.35 | O20: 390.28 | P20: 102.2 | Q20: 264.63 | R20: 4.52 | S20: 22.38 | T20: 7.36 | U20: 31.1
A22: 2 день, 1 неделя
A23: № рецептуры | B23: Прием пищи, наименование блюда | C23: Масса | D23: Пищевые вещества | G23: Энергетическая ценность | H23: Витамины | M23: Минеральные вещества
D24: Белки | E24: Жиры | F24: Углеводы | H24: B1 | I24: B2 | J24: A | K24: D | L24: C | M24: Na | N24: K | O24: Ca | P24: Mg | Q24: P | R24: Fe | S24: I | T24: Se | U24: F
C25: г | D25: г | E25: г | F25: г | G25: ккал | H25: мг | I25: мг | J25: мкг рет.экв | K25: мкг | L25: мг | M25: мг | N25: мг | O25: мг | P25: мг | Q25: мг | R25: мг | S25: мкг | T25: мкг | U25: мкг
B26: Вторник, 1 неделя
B27: Горячий завтрак | C27: 11-18
A28: 54-11з-2020 | B28: Салат из моркови с яблоками с растительным маслом | C28: 100 | D28: 0.91 | E28: 10.17 | F28: 7.15 | G28: 123.8 | H28: 0.04 | I28: 0.03 | J28: 732.9 | K28: 0 | L28: 2 | M28: 114 | N28: 170 | O28: 19 | P28: 22 | Q28: 32 | R28: 1 | S28: 16.98 | T28: 0.2 | U28: 35.95
A29: 54-6г-2020 | B29: Рис отварной | C29: 180 | D29: 4.32 | E29: 5.78 | F29: 43.74 | G29: 244.2 | H29: 0.04 | I29: 0.03 | J29: 22.03 | K29: 0.11 | L29: 0 | M29: 184 | N29: 56 | O29: 129 | P29: 28 | Q29: 87 | R29: 0.6 | S29: 24.91 | T29: 8.7 | U29: 32.63
A30: №Т/К 272 | B30: Котлета мясная с соусом | C30: 65/35 | D30: 11.4 | E30: 9.3 | F30: 12.4 | G30: 179.2 | H30: 0 | I30: 0 | J30: 0.1 | K30: 0 | L30: 1.8 | M30: 0 | N30: 0 | O30: 18.9 | P30: 22.1 | Q30: 115.5 | R30: 1.9 | S30: 0 | T30: 0 | U30: 0
A31: №Т/К 436 | B31: Напиток апельсиновый | C31: 200 | D31: 0.2 | E31: 0 | F31: 13 | G31: 53.5 | H31: 0 | I31: 0 | J31: 0 | K31: 0 | L31: 4 | M31: 0 | N31: 0 | O31: 13.5 | P31: 3.8 | Q31: 3.5 | R31: 0.1 | S31: 0 | T31: 0 | U31: 0
A32: Пром. | B32: Хлеб пшеничный | C32: 20 | D32: 1.52 | E32: 0.16 | F32: 9.84 | G32: 46.9 | H32: 0.02 | I32: 0.01 | J32: 0 | K32: 0 | L32: 0 | M32: 100 | N32: 19 | O32: 4 | P32: 3 | Q32: 13 | R32: 0.2 | S32: 0.64 | T32: 1.2 | U32: 2.9
A33: Пром. | B33: Хлеб ржаной | C33: 20 | D33: 1.3 | E33: 0.2 | F33: 6.7 | G33: 34.2 | H33: 0.04 | I33: 0.02 | J33: 0 | K33: 0 | L33: 0 | M33: 122 | N33: 49 | O33: 7 | P33: 9.4 | Q33: 31.6 | R33: 0.78 | S33: 0 | T33: 6.18 | U33: 0
B34: Итого за Завтрак | C34: 620 | D34: =SUM(D28:D33) -> 19.65 | E34: 25.61 | F34: 92.83 | G34: 681.8 | H34: 0.14 | I34: 0.09 | J34: 755.03 | K34: 0.11 | L34: 7.8 | M34: 520 | N34: 294 | O34: 191.4 | P34: 88.3 | Q34: 282.6 | R34: 4.58 | S34: 42.53 | T34: 16.28 | U34: 71.48
B35: Итого за день | C35: =C34 -> 620 | D35: =D34 -> 19.65 | E35: =E34 -> 25.61 | F35: 92.83 | G35: 681.8 | H35: 0.14 | I35: 0.09 | J35: 755.03 | K35: 0.11 | L35: 7.8 | M35: 520 | N35: 294 | O35: 191.4 | P35: 88.3 | Q35: 282.6 | R35: 4.58 | S35: 42.53 | T35: 16.28 | U35: 71.48
A37: 3 день, 1 неделя
A38: № рецептуры | B38: Прием пищи, наименование блюда | C38: Масса | D38: Пищевые вещества | G38: Энергетическая ценность | H38: Витамины | M38: Минеральные вещества
D39: Белки | E39: Жиры | F39: Углеводы | H39: B1 | I39: B2 | J39: A | K39: D | L39: C | M39: Na | N39: K | O39: Ca | P39: Mg | Q39: P | R39: Fe | S39: I | T39: Se | U39: F
C40: г | D40: г | E40: г | F40: г | G40: ккал | H40: мг | I40: мг | J40: мкг рет.экв | K40: мкг | L40: мг | M40: мг | N40: мг | O40: мг | P40: мг | Q40: мг | R40: мг | S40: мкг | T40: мкг | U40: мкг
B41: Среда, 1 неделя
B42: Горячий завтрак | C42: 11-18
A43: 54-13з | B43: Салат из свеклы отварной с растительным маслом | C43: 100 | D43: 1.34 | E43: 4.48 | F43: 7.61 | G43: 76.1 | H43: 0.01 | I43: 0.03 | J43: 1.14 | K43: 0 | L43: 4 | M43: 131 | N43: 227 | O43: 32 | P43: 18 | Q43: 36 | R43: 1.2 | S43: 19.98 | T43: 0.6 | U43: 19
A44: 54-1г-2020 | B44: Макароны отварные | C44: 180 | D44: 6.39 | E44: 5.91 | F44: 39.36 | G44: 236.2 | H44: 0.07 | I44: 0.03 | J44: 22.03 | K44: 0.11 | L44: 0 | M44: 179 | N44: 64 | O44: 127 | P44: 9 | Q44: 48 | R44: 0.9 | S44: 24.92 | T44: 0.1 | U44: 14.31
A45: №243 | B45: Сосиски говяжьи отварные, п/ф (2 шт) | C45: 100 | D45: 13.2 | E45: 22.84 | F45: 1.8 | G45: 247.15 | H45: 0 | I45: 0 | J45: 0.08 | K45: 0.01 | L45: 0 | M45: 0 | N45: 0 | O45: 7.44 | P45: 15.51 | Q45: 137.39 | R45: 1.74 | S45: 0 | T45: 0 | U45: 0
A46: 54-3гн-2020 | B46: Чай с лимоном и сахаром | C46: 207 | D46: 0.2 | E46: 0.1 | F46: 6.6 | G46: 27.9 | H46: 0 | I46: 0.01 | J46: 0.38 | K46: 0 | L46: 1.16 | M46: 1.26 | N46: 30.23 | O46: 67 | P46: 4.56 | Q46: 8.52 | R46: 0.77 | S46: 0.01 | T46: 0.02 | U46: 0.7
A47: Пром. | B47: Хлеб ржаной | C47: 20 | D47: 1.3 | E47: 0.2 | F47: 6.7 | G47: 34.2 | H47: 0.04 | I47: 0.02 | J47: 0 | K47: 0 | L47: 0 | M47: 122 | N47: 49 | O47: 7 | P47: 9.4 | Q47: 31.6 | R47: 0.78 | S47: 0 | T47: 6.18 | U47: 0
A48: Пром. | B48: Хлеб пшеничный | C48: 20 | D48: 1.52 | E48: 0.16 | F48: 9.84 | G48: 46.9 | H48: 0.02 | I48: 0.01 | J48: 0 | K48: 0 | L48: 0 | M48: 100 | N48: 19 | O48: 4 | P48: 3 | Q48: 13 | R48: 0.2 | S48: 0.64 | T48: 1.2 | U48: 2.9
A49: 54-1з | B49: Сыр порциями | C49: 15 | D49: 3.48 | E49: 4.42 | F49: 0 | G49: 53.7 | H49: 0 | I49: 0.04 | J49: 23.4 | K49: 0.14 | L49: 0 | M49: 92 | N49: 11 | O49: 116 | P49: 5 | Q49: 65 | R49: 0.1 | S49: 0 | T49: 1.9 | U49: 0
B50: Итого за Завтрак | C50: =SUM(C43:C49) -> 642 | D50: =SUM(D43:D49) -> 27.43 | E50: =SUM(E43:E49) -> 38.11 | F50: 71.91 | G50: 722.15 | H50: 0.14 | I50: 0.14 | J50: 47.03 | K50: 0.26 | L50: 5.16 | M50: 625.26 | N50: 400.23 | O50: 360.44 | P50: 64.47 | Q50: 339.51 | R50: 5.69 | S50: 45.55 | T50: 10 | U50: 36.91
B51: Итого за день | C51: =C50 -> 642 | D51: =D50 -> 27.43 | E51: =E50 -> 38.11 | F51: 71.91 | G51: 722.15 | H51: 0.14 | I51: 0.14 | J51: 47.03 | K51: 0.26 | L51: 5.16 | M51: 625.26 | N51: 400.23 | O51: 360.44 | P51: 64.47 | Q51: 339.51 | R51: 5.69 | S51: 45.55 | T51: 10 | U51: 36.91
A53: 4 день, 1 неделя
A54: № рецептуры | B54: Прием пищи, наименование блюда | C54: Масса | D54: Пищевые вещества | G54: Энергетическая ценность | H54: Витамины | M54: Минеральные вещества
D55: Белки | E55: Жиры | F55: Углеводы | H55: B1 | I55: B2 | J55: A | K55: D | L55: C | M55: Na | N55: K | O55: Ca | P55: Mg | Q55: P | R55: Fe | S55: I | T55: Se | U55: F
C56: г | D56: г | E56: г | F56: г | G56: ккал | H56: мг | I56: мг | J56: мкг рет.экв | K56: мкг | L56: мг | M56: мг | N56: мг | O56: мг | P56: мг | Q56: мг | R56: мг | S56: мкг | T56: мкг | U56: мкг
B57: Четверг, 1 неделя
B58: Горячий завтрак | C58: 11-18
A59: 54-9з-2020 | B59: Салат из белокочанной капусты с морковью, яблоками и растительным маслом | C59: 100 | D59: 1.37 | E59: 10.15 | F59: 6.03 | G59: 120.9 | H59: 0.02 | I59: 0.03 | J59: 241.63 | K59: 0 | L59: 11 | M59: 111 | N59: 221 | O59: 35 | P59: 17 | Q59: 27 | R59: 0.8 | S59: 16.44 | T59: 0.3 | U59: 18.3
A60: 54-11г-2020 | B60: Картофельное пюре | C60: 180 | D60: 3.69 | E60: 6.37 | F60: 23.79 | G60: 167.3 | H60: 0.14 | I60: 0.12 | J60: 28.55 | K60: 0.11 | L60: 12 | M60: 195 | N60: 750 | O60: 47 | P60: 34 | Q60: 101 | R60: 1.2 | S60: 34.15 | T60: 1 | U60: 51.35
A61: № рец. 290 | B61: Птица тушеная в соусе | C61: 50/50 | D61: 13.8 | E61: 14.8 | F61: 3.9 | G61: 211 | H61: 0.1 | I61: 0 | J61: 0 | K61: 0 | L61: 1.5 | M61: 0 | N61: 0 | O61: 26.4 | P61: 16.6 | Q61: 115.3 | R61: 0.9 | S61: 0 | T61: 0 | U61: 0
A62: № Т/к 438 | B62: Напиток яблочный | C62: 200 | D62: 0.1 | E62: 0.1 | F62: 13.9 | G62: 57.8 | H62: 0 | I62: 0 | J62: 0 | K62: 0 | L62: 1 | M62: 0 | N62: 0 | O62: 12.3 | P62: 3.7 | Q62: 2.4 | R62: 0.5 | S62: 0 | T62: 0 | U62: 0
A63: Пром. | B63: Хлеб ржаной | C63: 20 | D63: 1.3 | E63: 0.2 | F63: 6.7 | G63: 34.2 | H63: 0.04 | I63: 0.02 | J63: 0 | K63: 0 | L63: 0 | M63: 122 | N63: 49 | O63: 7 | P63: 9.4 | Q63: 31.6 | R63: 0.78 | S63: 0 | T63: 6.18 | U63: 0
A64: Пром. | B64: Хлеб пшеничный | C64: 20 | D64: 1.52 | E64: 0.16 | F64: 9.84 | G64: 46.9 | H64: 0.02 | I64: 0.01 | J64: 0 | K64: 0 | L64: 0 | M64: 100 | N64: 19 | O64: 4 | P64: 3 | Q64: 13 | R64: 0.2 | S64: 0.64 | T64: 1.2 | U64: 2.9
B65: Итого за Завтрак | C65: 620 | D65: =SUM(D59:D64) -> 21.78 | E65: 31.78 | F65: 64.16 | G65: 638.1 | H65: 0.32 | I65: 0.18 | J65: 270.18 | K65: 0.11 | L65: 25.5 | M65: 528 | N65: 1039 | O65: 131.7 | P65: 83.7 | Q65: 290.3 | R65: 4.38 | S65: 51.23 | T65: 8.68 | U65: 72.55
B66: Итого за день | C66: =C65 -> 620 | D66: =D65 -> 21.78 | E66: =E65 -> 31.78 | F66: 64.16 | G66: =G65 -> 638.1 | H66: 0.32 | I66: 0.18 | J66: 270.18 | K66: 0.11 | L66: 25.5 | M66: 528 | N66: 1039 | O66: 131.7 | P66: 83.7 | Q66: 290.3 | R66: 4.38 | S66: 51.23 | T66: 8.68 | U66: 72.55
A68: 5 день, 1 неделя
A69: № рецептуры | B69: Прием пищи, наименование блюда | C69: Масса | D69: Пищевые вещества | G69: Энергетическая ценность | H69: Витамины | M69: Минеральные вещества
D70: Белки | E70: Жиры | F70: Углеводы | H70: B1 | I70: B2 | J70: A | K70: D | L70: C | M70: Na | N70: K | O70: Ca | P70: Mg | Q70: P | R70: Fe | S70: I | T70: Se | U70: F
C71: г | D71: г | E71: г | F71: г | G71: ккал | H71: мг | I71: мг | J71: мкг рет.экв | K71: мкг | L71: мг | M71: мг | N71: мг | O71: мг | P71: мг | Q71: мг | R71: мг | S71: мкг | T71: мкг | U71: мкг
B72: Пятница, 1 неделя
B73: Горячий завтрак | C73: 11-18
A74: 54-11з-2020 | B74: Салат из моркови с яблоками с растительным маслом | C74: 100 | D74: 0.91 | E74: 10.17 | F74: 7.15 | G74: 123.8 | H74: 0.04 | I74: 0.03 | J74: 732.9 | K74: 0 | L74: 2 | M74: 114 | N74: 170 | O74: 19 | P74: 22 | Q74: 32 | R74: 1 | S74: 16.98 | T74: 0.2 | U74: 35.95
A75: 54-6г-2020 | B75: Плов из говядины | C75: 180/40 | D75: 16.86 | E75: 16.22 | F75: 42.44 | G75: 383.1 | H75: 0.07 | I75: 0.13 | J75: 287.76 | K75: 0.11 | L75: 0 | M75: 304 | N75: 295 | O75: 128 | P75: 48 | Q75: 213 | R75: 2.4 | S75: 42.53 | T75: 8.1 | U75: 89.91
A76: 54-4гн-2020 | B76: Компот из кураги | C76: 200 | D76: 0.98 | E76: 0.05 | F76: 15.64 | G76: 66.9 | H76: 0.01 | I76: 0.03 | J76: 69.96 | K76: 0 | L76: 0 | M76: 3 | N76: 285 | O76: 90 | P76: 18 | Q76: 25 | R76: 0.6 | S76: 0 | T76: 0 | U76: 0
A77: Пром. | B77: Хлеб ржаной | C77: 20 | D77: 1.3 | E77: 0.2 | F77: 6.7 | G77: 34.2 | H77: 0.04 | I77: 0.02 | J77: 0 | K77: 0 | L77: 0 | M77: 122 | N77: 49 | O77: 7 | P77: 9.4 | Q77: 31.6 | R77: 0.78 | S77: 0 | T77: 6.18 | U77: 0
A78: Пром. | B78: Булочка ванильная | C78: 60 | D78: 4.68 | E78: 4.03 | F78: 30.46 | G78: 177 | H78: 0.05 | I78: 0.02 | J78: 19.12 | K78: 0.15 | L78: 0 | M78: 241 | N78: 50 | O78: 18 | P78: 6 | Q78: 41 | R78: 0.5 | S78: 33.36 | T78: 3.1 | U78: 11.03
B79: Итого за Завтрак | C79: 600 | D79: =SUM(D74:D78) -> 24.73 | E79: =SUM(E74:E78) -> 30.67 | F79: 102.39 | G79: 785 | H79: 0.21 | I79: 0.23 | J79: 1109.74 | K79: 0.26 | L79: 2 | M79: 784 | N79: 849 | O79: 262 | P79: 103.4 | Q79: 342.6 | R79: 5.28 | S79: 92.87 | T79: 17.58 | U79: 136.89
B80: Итого за день | C80: =C79 -> 600 | D80: =D79 -> 24.73 | E80: =E79 -> 30.67 | F80: 102.39 | G80: 785 | H80: 0.21 | I80: 0.23 | J80: 1109.74 | K80: 0.26 | L80: 2 | M80: 784 | N80: 849 | O80: 262 | P80: 103.4 | Q80: 342.6 | R80: 5.28 | S80: 92.87 | T80: 17.58 | U80: 136.89
A83: 6 день, 1 неделя
A84: № рецептуры | B84: Прием пищи, наименование блюда | C84: Масса | D84: Пищевые вещества | G84: Энергетическая ценность | H84: Витамины | M84: Минеральные вещества
D85: Белки | E85: Жиры | F85: Углеводы | H85: B1 | I85: B2 | J85: A | K85: D | L85: C | M85: Na | N85: K | O85: Ca | P85: Mg | Q85: P | R85: Fe | S85: I | T85: Se | U85: F
C86: г | D86: г | E86: г | F86: г | G86: ккал | H86: мг | I86: мг | J86: мкг рет.экв | K86: мкг | L86: мг | M86: мг | N86: мг | O86: мг | P86: мг | Q86: мг | R86: мг | S86: мкг | T86: мкг | U86: мкг
B87: Пятница, 1 неделя
B88: Горячий завтрак | C88: 11-18
A89: 54-16з-2020 | B89: Винегрет с растительным маслом | C89: 100 | D89: 1.17 | E89: 8.95 | F89: 6.67 | G89: 111.9 | H89: 0.03 | I89: 0.02 | J89: 121.48 | K89: 0 | L89: 5 | M89: 335 | N89: 214 | O89: 20 | P89: 16 | Q89: 36 | R89: 0.8 | S89: 13.1 | T89: 0.3 | U89: 19.75
A90: 54-1т-2020 | B90: Запеканка из творога | C90: 180 | D90: 35.58 | E90: 12.81 | F90: 26.95 | G90: 361.4 | H90: 0.07 | I90: 0.38 | J90: 61.35 | K90: 0.18 | L90: 0 | M90: 217 | N90: 193 | O90: 268 | P90: 38 | Q90: 349 | R90: 1 | S90: 34.58 | T90: 47 | U90: 59.55
A91: Пром. | B91: Молоко сгущенное с сахаром | C91: 20 | D91: 1.44 | E91: 1.7 | F91: 11.1 | G91: 65.5 | H91: 0.01 | I91: 0.08 | J91: 9.4 | K91: 0 | L91: 0 | M91: 26 | N91: 73 | O91: 61 | P91: 7 | Q91: 44 | R91: 0 | S91: 1.4 | T91: 0.6 | U91: 7
A92: 54-23гн-2020 | B92: Кофейный напиток с молоком | C92: 200 | D92: 3.9 | E92: 2.9 | F92: 11.2 | G92: 86 | H92: 0.03 | I92: 0.13 | J92: 13.29 | K92: 0 | L92: 0.52 | M92: 38.55 | N92: 183.98 | O92: 148.32 | P92: 30.67 | Q92: 106.79 | R92: 1.06 | S92: 9 | T92: 1.76 | U92: 20
A93: Пром. | B93: Хлеб ржаной | C93: 20 | D93: 1.3 | E93: 0.2 | F93: 6.7 | G93: 34.2 | H93: 0.04 | I93: 0.02 | J93: 0 | K93: 0 | L93: 0 | M93: 122 | N93: 49 | O93: 7 | P93: 9.4 | Q93: 31.6 | R93: 0.78 | S93: 0 | T93: 6.18 | U93: 0
A94: Пром. | B94: Хлеб пшеничный | C94: 20 | D94: 1.52 | E94: 0.16 | F94: 9.84 | G94: 46.9 | H94: 0.02 | I94: 0.01 | J94: 0 | K94: 0 | L94: 0 | M94: 100 | N94: 19 | O94: 4 | P94: 3 | Q94: 13 | R94: 0.2 | S94: 0.64 | T94: 1.2 | U94: 2.9
B95: Итого за Завтрак | C95: =SUM(C89:C94) -> 540 | D95: =SUM(D89:D94) -> 44.91 | E95: =SUM(E89:E94) -> 26.72 | F95: 72.46 | G95: 705.9 | H95: 0.2 | I95: 0.64 | J95: 205.52 | K95: 0.18 | L95: 5.52 | M95: 838.55 | N95: 731.98 | O95: 508.32 | P95: 104.07 | Q95: 580.39 | R95: 3.84 | S95: 58.72 | T95: 57.04 | U95: 109.2
B96: Итого за день | C96: =C95 -> 540 | D96: =D95 -> 44.91 | E96: =E95 -> 26.72 | F96: 72.46 | G96: 705.9 | H96: 0.2 | I96: 0.64 | J96: 205.52 | K96: 0.18 | L96: 5.52 | M96: 838.55 | N96: 731.98 | O96: 508.32 | P96: 104.07 | Q96: 580.39 | R96: 3.84 | S96: 58.72 | T96: 57.04 | U96: 109.2
A98: 7 день, 2 неделя
A99: № рецептуры | B99: Прием пищи, наименование блюда | C99: Масса | D99: Пищевые вещества | G99: Энергетическая ценность | H99: Витамины | M99: Минеральные вещества
D100: Белки | E100: Жиры | F100: Углеводы | H100: B1 | I100: B2 | J100: A | K100: D | L100: C | M100: Na | N100: K | O100: Ca | P100: Mg | Q100: P | R100: Fe | S100: I | T100: Se | U100: F
C101: г | D101: г | E101: г | F101: г | G101: ккал | H101: мг | I101: мг | J101: мкг рет.экв | K101: мкг | L101: мг | M101: мг | N101: мг | O101: мг | P101: мг | Q101: мг | R101: мг | S101: мкг | T101: мкг | U101: мкг
B102: Понедельник, 2 неделя
B103: Горячий завтрак | C103: 11-18
A104: №Т/К 41 | B104: Салат из моркови с сахаром и растительным маслом | C104: 100 | D104: 0.91 | E104: 10.17 | F104: 7.15 | G104: 123.8 | H104: 0.04 | I104: 0.03 | J104: 732.9 | K104: 0 | L104: 2 | M104: 114 | N104: 170 | O104: 19 | P104: 22 | Q104: 32 | R104: 1 | S104: 16.98 | T104: 0.2 | U104: 35.95
A105: 62 | B105: Борщ | C105: 250 | D105: 3.1 | E105: 7.3 | F105: 16.5 | G105: 151.1 | H105: 0.1 | I105: 0 | J105: 0.3 | K105: 0 | L105: 12 | M105: 0 | N105: 0 | O105: 55 | P105: 33.4 | Q105: 72.4 | R105: 1.6 | S105: 0 | T105: 0 | U105: 0
A106: 54-2гн-2020 | B106: Чай с сахаром | C106: 200 | D106: 0.2 | E106: 0 | F106: 6.4 | G106: 26.8 | H106: 0 | I106: 0.01 | J106: 0.3 | K106: 0 | L106: 0.04 | M106: 0.68 | N106: 20.76 | O106: 66.08 | P106: 3.83 | Q106: 7.18 | R106: 0.73 | S106: 0 | T106: 0 | U106: 0
A107: № Т/К 400 | B107: Блины фаршированные (вишня, клубника) П/Ф (70гр) 2 шт | C107: 140 | D107: 4.2 | E107: 5.6 | F107: 35 | G107: 210 | H107: 0.06 | I107: 0 | J107: 0 | K107: 0 | L107: 0 | M107: 0 | N107: 0 | O107: 32.44 | P107: 13.18 | Q107: 85 | R107: 1.44 | S107: 0 | T107: 0 | U107: 0
A108: Пром. | B108: Хлеб ржаной | C108: 20 | D108: 1.3 | E108: 0.2 | F108: 6.7 | G108: 34.2 | H108: 0.04 | I108: 0.02 | J108: 0 | K108: 0 | L108: 0 | M108: 122 | N108: 49 | O108: 7 | P108: 9.4 | Q108: 31.6 | R108: 0.78 | S108: 0 | T108: 6.18 | U108: 0
B109: Итого за Завтрак | C109: =SUM(C104:C108) -> 710 | D109: 9.71 | E109: 23.27 | F109: 71.75 | G109: 545.9 | H109: 0.24 | I109: 0.06 | J109: 733.5 | K109: 0 | L109: 14.04 | M109: 236.68 | N109: 239.76 | O109: 179.52 | P109: 81.81 | Q109: 228.18 | R109: 5.55 | S109: 16.98 | T109: 6.38 | U109: 35.95
B110: Итого за день | C110: =C109 -> 710 | D110: =D109 -> 9.71 | E110: 23.27 | F110: 71.75 | G110: 545.9 | H110: 0.24 | I110: 0.06 | J110: 733.5 | K110: 0 | L110: 14.04 | M110: 236.68 | N110: 239.76 | O110: 179.52 | P110: 81.81 | Q110: 228.18 | R110: 5.55 | S110: 16.98 | T110: 6.38 | U110: 35.95
A112: 8 день, 2 неделя
A113: № рецептуры | B113: Прием пищи, наименование блюда | C113: Масса | D113: Пищевые вещества | G113: Энергетическая ценность | H113: Витамины | M113: Минеральные вещества
D114: Белки | E114: Жиры | F114: Углеводы | H114: B1 | I114: B2 | J114: A | K114: D | L114: C | M114: Na | N114: K | O114: Ca | P114: Mg | Q114: P | R114: Fe | S114: I | T114: Se | U114: F
C115: г | D115: г | E115: г | F115: г | G115: ккал | H115: мг | I115: мг | J115: мкг рет.экв | K115: мкг | L115: мг | M115: мг | N115: мг | O115: мг | P115: мг | Q115: мг | R115: мг | S115: мкг | T115: мкг | U115: мкг
B116: Вторник, 2 неделя
B117: Горячий завтрак | C117: 11-18
A118: 54-13з | B118: Салат из свеклы отварной с растительным маслом | C118: 100 | D118: 1.34 | E118: 4.48 | F118: 7.61 | G118: 76.1 | H118: 0.01 | I118: 0.03 | J118: 1.14 | K118: 0 | L118: 4 | M118: 131 | N118: 227 | O118: 32 | P118: 18 | Q118: 36 | R118: 1.2 | S118: 19.98 | T118: 0.6 | U118: 19
A119: 54-12м-2020 | B119: Плов с курицей | C119: 170/50 | D119: 20.34 | E119: 8.18 | F119: 36.38 | G119: 300.4 | H119: 0.08 | I119: 0.07 | J119: 159.36 | K119: 0 | L119: 2 | M119: 301 | N119: 316 | O119: 80 | P119: 87 | Q119: 193 | R119: 1.7 | S119: 41.15 | T119: 21.6 | U119: 129.9
A120: 54-3гн-2020 | B120: Чай с лимоном и сахаром | C120: 207 | D120: 0.2 | E120: 0.1 | F120: 6.6 | G120: 27.9 | H120: 0 | I120: 0.01 | J120: 0.38 | K120: 0 | L120: 1.16 | M120: 1.26 | N120: 30.23 | O120: 67 | P120: 4.56 | Q120: 8.52 | R120: 0.77 | S120: 0.01 | T120: 0.02 | U120: 0.7
A121: Пром. | B121: Хлеб пшеничный | C121: 20 | D121: 1.52 | E121: 0.16 | F121: 9.84 | G121: 46.9 | H121: 0.02 | I121: 0.01 | J121: 0 | K121: 0 | L121: 0 | M121: 100 | N121: 19 | O121: 4 | P121: 3 | Q121: 13 | R121: 0.2 | S121: 0.64 | T121: 1.2 | U121: 2.9
A122: Пром. | B122: Хлеб ржаной | C122: 20 | D122: 1.3 | E122: 0.2 | F122: 6.7 | G122: 34.2 | H122: 0.04 | I122: 0.02 | J122: 0 | K122: 0 | L122: 0 | M122: 122 | N122: 49 | O122: 7 | P122: 9.4 | Q122: 31.6 | R122: 0.78 | S122: 0 | T122: 6.18 | U122: 0
A123: Пром. | B123: Яблоко | C123: 100 | D123: 0.6 | E123: 0.6 | F123: 14.7 | G123: 66.6 | H123: 0.04 | I123: 0.03 | J123: 7.5 | K123: 0 | L123: 15 | M123: 39 | N123: 417 | O123: 24 | P123: 14 | Q123: 17 | R123: 3.3 | S123: 3 | T123: 0.4 | U123: 12
B124: Итого за Завтрак | C124: 667 | D124: =SUM(D118:D123) -> 25.3 | E124: =SUM(E118:E123) -> 13.72 | F124: 81.83 | G124: 552.1 | H124: 0.19 | I124: 0.17 | J124: 168.38 | K124: 0 | L124: 22.16 | M124: 694.26 | N124: 1058.23 | O124: 214 | P124: 135.96 | Q124: 299.12 | R124: 7.95 | S124: 64.78 | T124: 30 | U124: 164.5
B125: Итого за день | C125: =C124 -> 667 | D125: =D124 -> 25.3 | E125: =E124 -> 13.72 | F125: 81.83 | G125: 552.1 | H125: 0.19 | I125: 0.17 | J125: 168.38 | K125: 0 | L125: 22.16 | M125: 694.26 | N125: 1058.23 | O125: 214 | P125: 135.96 | Q125: 299.12 | R125: 7.95 | S125: 64.78 | T125: 30 | U125: 164.5
A127: 9 день, 2 неделя
A128: № рецептуры | B128: Прием пищи, наименование блюда | C128: Масса | D128: Пищевые вещества | G128: Энергетическая ценность | H128: Витамины | M128: Минеральные вещества
D129: Белки | E129: Жиры | F129: Углеводы | H129: B1 | I129: B2 | J129: A | K129: D | L129: C | M129: Na | N129: K | O129: Ca | P129: Mg | Q129: P | R129: Fe | S129: I | T129: Se | U129: F
C130: г | D130: г | E130: г | F130: г | G130: ккал | H130: мг | I130: мг | J130: мкг рет.экв | K130: мкг | L130: мг | M130: мг | N130: мг | O130: мг | P130: мг | Q130: мг | R130: мг | S130: мкг | T130: мкг | U130: мкг
B131: Среда, 2 неделя
B132: Горячий завтрак | C132: 11-18
A133: 54-16з-2020 | B133: Винегрет с растительным маслом | C133: 100 | D133: 1.17 | E133: 8.95 | F133: 6.67 | G133: 111.9 | H133: 0.03 | I133: 0.02 | J133: 121.48 | K133: 0 | L133: 5 | M133: 335 | N133: 214 | O133: 20 | P133: 16 | Q133: 36 | R133: 0.8 | S133: 13.1 | T133: 0.3 | U133: 19.75
A134: 54-11г-2020 | B134: Картофельное пюре | C134: 180 | D134: 3.69 | E134: 6.37 | F134: 23.79 | G134: 167.3 | H134: 0.14 | I134: 0.12 | J134: 28.55 | K134: 0.11 | L134: 12 | M134: 195 | N134: 750 | O134: 47 | P134: 34 | Q134: 101 | R134: 1.2 | S134: 34.15 | T134: 1 | U134: 51.35
A135: 54-7р-2020 | B135: Рыба припущенная в молоко | C135: 70/30 | D135: 13.09 | E135: 7.52 | F135: 2.89 | G135: 131.6 | H135: 0.08 | I135: 0.11 | J135: 9.02 | K135: 0.16 | L135: 1 | M135: 111 | N135: 347 | O135: 68 | P135: 44 | Q135: 202 | R135: 0.7 | S135: 133.48 | T135: 11.9 | U135: 572.6
A136: №Т/К 436 | B136: Напиток апельсиновый | C136: 200 | D136: 0.2 | E136: 0 | F136: 13 | G136: 53.5 | H136: 0 | I136: 0 | J136: 0 | K136: 0 | L136: 4 | M136: 0 | N136: 0 | O136: 13.5 | P136: 3.8 | Q136: 3.5 | R136: 0.1 | S136: 0 | T136: 0 | U136: 0
A137: Пром. | B137: Хлеб ржаной | C137: 20 | D137: 1.3 | E137: 0.2 | F137: 6.7 | G137: 34.2 | H137: 0.04 | I137: 0.02 | J137: 0 | K137: 0 | L137: 0 | M137: 122 | N137: 49 | O137: 7 | P137: 9.4 | Q137: 31.6 | R137: 0.78 | S137: 0 | T137: 6.18 | U137: 0
A138: Пром. | B138: Булочка веснушка (хлебзавод) 50 гр | C138: 50 | D138: 3.85 | E138: 1.2 | F138: 26.7 | G138: 133 | H138: 0.06 | I138: 0.01 | J138: 0 | K138: 0 | L138: 0 | M138: 219 | N138: 49 | O138: 10 | P138: 7 | Q138: 34 | R138: 0.6 | S138: 0 | T138: 0 | U138: 0
B139: Итого за Завтрак | C139: 650 | D139: =SUM(D133:D138) -> 23.3 | E139: =SUM(E133:E138) -> 24.24 | F139: 79.75 | G139: =SUM(G133:G138) -> 631.5 | H139: 0.35 | I139: 0.28 | J139: 159.05 | K139: 0.27 | L139: 22 | M139: 982 | N139: 1409 | O139: 165.5 | P139: 114.2 | Q139: 408.1 | R139: 4.18 | S139: 180.73 | T139: 19.38 | U139: 643.7
B140: Итого за день | C140: =C139 -> 650 | D140: =D139 -> 23.3 | E140: 24.24 | F140: 79.75 | G140: 631.5 | H140: 0.35 | I140: 0.28 | J140: 159.05 | K140: 0.27 | L140: 22 | M140: 982 | N140: 1409 | O140: 165.5 | P140: 114.2 | Q140: 408.1 | R140: 4.18 | S140: 180.73 | T140: 19.38 | U140: 643.7
A142: 10 день, 2 неделя
A143: № рецептуры | B143: Прием пищи, наименование блюда | C143: Масса | D143: Пищевые вещества | G143: Энергетическая ценность | H143: Витамины | M143: Минеральные вещества
D144: Белки | E144: Жиры | F144: Углеводы | H144: B1 | I144: B2 | J144: A | K144: D | L144: C | M144: Na | N144: K | O144: Ca | P144: Mg | Q144: P | R144: Fe | S144: I | T144: Se | U144: F
C145: г | D145: г | E145: г | F145: г | G145: ккал | H145: мг | I145: мг | J145: мкг рет.экв | K145: мкг | L145: мг | M145: мг | N145: мг | O145: мг | P145: мг | Q145: мг | R145: мг | S145: мкг | T145: мкг | U145: мкг
B146: Четверг, 2 неделя
B147: Горячий завтрак | C147: 11-18
A148: 54-7з | B148: Салат из белокочанной капусты с растительным маслом | C148: 100 | D148: 2.52 | E148: 10.15 | F148: 10.39 | G148: 143 | H148: 0.03 | I148: 0.05 | J148: 122.25 | K148: 0 | L148: 23 | M148: 112 | N148: 343 | O148: 59 | P148: 21 | Q148: 44 | R148: 0.9 | S148: 17.88 | T148: 0.3 | U148: 21.1
A149: 54-4г-2020 | B149: Каша гречневая рассыпчатая | C149: 180 | D149: 9.87 | E149: 7.61 | F149: 43.12 | G149: 280.5 | H149: 0.26 | I149: 0.14 | J149: 23.02 | K149: 0.11 | L149: 0 | M149: 180 | N149: 263 | O149: 57 | P149: 144 | Q149: 217 | R149: 4.8 | S149: 26.73 | T149: 4.3 | U149: 19.27
A150: 54-2м-2020 | B150: Гуляш из говядины | C150: 60/40 | D150: 13.76 | E150: 13.91 | F150: 3.9 | G150: 195.8 | H150: 0.04 | I150: 0.12 | J150: 25.46 | K150: 0.07 | L150: 1 | M150: 122 | N150: 322 | O150: 55 | P150: 23 | Q150: 166 | R150: 2.5 | S150: 17.06 | T150: 0.4 | U150: 62.71
A151: 54-21гн-2020 | B151: Кофейный напиток с молоком | C151: 200 | D151: 3.9 | E151: 2.9 | F151: 11.2 | G151: 86 | H151: 0.03 | I151: 0.13 | J151: 13.29 | K151: 0 | L151: 0.52 | M151: 38.55 | N151: 183.98 | O151: 148.32 | P151: 30.67 | Q151: 106.79 | R151: 1.06 | S151: 9 | T151: 1.76 | U151: 20
A152: Пром. | B152: Хлеб пшеничный | C152: 20 | D152: 1.52 | E152: 0.16 | F152: 9.84 | G152: 46.9 | H152: 0.02 | I152: 0.01 | J152: 0 | K152: 0 | L152: 0 | M152: 100 | N152: 19 | O152: 4 | P152: 3 | Q152: 13 | R152: 0.2 | S152: 0.64 | T152: 1.2 | U152: 2.9
A153: Пром. | B153: Хлеб ржаной | C153: 20 | D153: 1.3 | E153: 0.2 | F153: 6.7 | G153: 34.2 | H153: 0.04 | I153: 0.02 | J153: 0 | K153: 0 | L153: 0 | M153: 122 | N153: 49 | O153: 7 | P153: 9.4 | Q153: 31.6 | R153: 0.78 | S153: 0 | T153: 6.18 | U153: 0
B154: Итого за Завтрак | C154: 620 | D154: =SUM(D148:D153) -> 32.87 | E154: =SUM(E148:E153) -> 34.93 | F154: 85.15 | G154: =SUM(G148:G153) -> 786.4 | H154: 0.42 | I154: 0.47 | J154: 184.02 | K154: 0.18 | L154: 24.52 | M154: 674.55 | N154: 1179.98 | O154: 330.32 | P154: 231.07 | Q154: 578.39 | R154: 10.24 | S154: 71.31 | T154: 14.14 | U154: 125.98
B155: Итого за день | C155: =C154 -> 620 | D155: =D154 -> 32.87 | E155: =E154 -> 34.93 | F155: 85.15 | G155: 786.4 | H155: 0.42 | I155: 0.47 | J155: 184.02 | K155: 0.18 | L155: 24.52 | M155: 674.55 | N155: 1179.98 | O155: 330.32 | P155: 231.07 | Q155: 578.39 | R155: 10.24 | S155: 71.31 | T155: 14.14 | U155: 125.98
A157: 11 день, 2 неделя
A158: № рецептуры | B158: Прием пищи, наименование блюда | C158: Масса | D158: Пищевые вещества | G158: Энергетическая ценность | H158: Витамины | M158: Минеральные вещества
D159: Белки | E159: Жиры | F159: Углеводы | H159: B1 | I159: B2 | J159: A | K159: D | L159: C | M159: Na | N159: K | O159: Ca | P159: Mg | Q159: P | R159: Fe | S159: I | T159: Se | U159: F
C160: г | D160: г | E160: г | F160: г | G160: ккал | H160: мг | I160: мг | J160: мкг рет.экв | K160: мкг | L160: мг | M160: мг | N160: мг | O160: мг | P160: мг | Q160: мг | R160: мг | S160: мкг | T160: мкг | U160: мкг
B161: Пятница, 2 неделя
B162: Горячий завтрак | C162: 11-18
A163: 54-13з | B163: Салат из свеклы отварной с растительным маслом | C163: 100 | D163: 1.34 | E163: 4.48 | F163: 7.61 | G163: 76.1 | H163: 0.01 | I163: 0.03 | J163: 1.14 | K163: 0 | L163: 4 | M163: 131 | N163: 227 | O163: 32 | P163: 18 | Q163: 36 | R163: 1.2 | S163: 19.98 | T163: 0.6 | U163: 19
A164: 54-1г-2020 | B164: Макароны отварные | C164: 180 | D164: 6.39 | E164: 5.91 | F164: 39.36 | G164: 236.2 | H164: 0.07 | I164: 0.03 | J164: 22.03 | K164: 0.11 | L164: 0 | M164: 179 | N164: 64 | O164: 127 | P164: 9 | Q164: 48 | R164: 0.9 | S164: 24.92 | T164: 0.1 | U164: 14.31
A165: ном.рец №174 | B165: Тефтели мясные из говядины, полуфабрикат в соусе | C165: 75/30 | D165: 10.81 | E165: 10.4 | F165: 8.42 | G165: 168.9 | H165: 0 | I165: 0 | J165: 38.45 | K165: 0.01 | L165: 1.79 | M165: 3 | N165: 43 | O165: 45.75 | P165: 35.13 | Q165: 109 | R165: 1.6 | S165: 0 | T165: 0 | U165: 0
A166: 54-4гн-2020 | B166: Компот из кураги | C166: 200 | D166: 0.98 | E166: 0.05 | F166: 15.64 | G166: 66.9 | H166: 0.01 | I166: 0.03 | J166: 69.96 | K166: 0 | L166: 0 | M166: 3 | N166: 285 | O166: 90 | P166: 18 | Q166: 25 | R166: 0.6 | S166: 0 | T166: 0 | U166: 0
A167: Пром. | B167: Хлеб ржаной | C167: 20 | D167: 1.3 | E167: 0.2 | F167: 6.7 | G167: 34.2 | H167: 0.04 | I167: 0.02 | J167: 0 | K167: 0 | L167: 0 | M167: 122 | N167: 49 | O167: 7 | P167: 9.4 | Q167: 31.6 | R167: 0.78 | S167: 0 | T167: 6.18 | U167: 0
A168: Пром. | B168: Хлеб пшеничный | C168: 20 | D168: 1.52 | E168: 0.16 | F168: 9.84 | G168: 46.9 | H168: 0.02 | I168: 0.01 | J168: 0 | K168: 0 | L168: 0 | M168: 100 | N168: 19 | O168: 4 | P168: 3 | Q168: 13 | R168: 0.2 | S168: 0.64 | T168: 1.2 | U168: 2.9
B169: Итого за Завтрак | C169: 625 | D169: =SUM(D163:D168) -> 22.34 | E169: 21.2 | F169: 87.57 | G169: =SUM(G163:G168) -> 629.2 | H169: 0.15 | I169: 0.12 | J169: 131.58 | K169: 0.12 | L169: 5.79 | M169: 538 | N169: 687 | O169: 305.75 | P169: 92.53 | Q169: 262.6 | R169: 5.28 | S169: 45.54 | T169: 8.08 | U169: 36.21
B170: Итого за день | C170: =C169 -> 625 | D170: =D169 -> 22.34 | E170: 21.2 | F170: 87.57 | G170: 629.2 | H170: 0.15 | I170: 0.12 | J170: 131.58 | K170: 0.12 | L170: 5.79 | M170: 538 | N170: 687 | O170: 305.75 | P170: 92.53 | Q170: 262.6 | R170: 5.28 | S170: 45.54 | T170: 8.08 | U170: 36.21
A173: 12 день, 2 неделя
A174: № рецептуры | B174: Прием пищи, наименование блюда | C174: Масса | D174: Пищевые вещества | G174: Энергетическая ценность | H174: Витамины | M174: Минеральные вещества
D175: Белки | E175: Жиры | F175: Углеводы | H175: B1 | I175: B2 | J175: A | K175: D | L175: C | M175: Na | N175: K | O175: Ca | P175: Mg | Q175: P | R175: Fe | S175: I | T175: Se | U175: F
C176: г | D176: г | E176: г | F176: г | G176: ккал | H176: мг | I176: мг | J176: мкг рет.экв | K176: мкг | L176: мг | M176: мг | N176: мг | O176: мг | P176: мг | Q176: мг | R176: мг | S176: мкг | T176: мкг | U176: мкг
B177: Пятница, 2 неделя
B178: Горячий завтрак | C178: 11-18
A179: 54-9з-2020 | B179: Салат из белокочанной капусты с морковью, яблоками и растительным маслом | C179: 100 | D179: 1.37 | E179: 10.15 | F179: 6.03 | G179: 120.9 | H179: 0.02 | I179: 0.03 | J179: 241.63 | K179: 0 | L179: 11 | M179: 111 | N179: 221 | O179: 35 | P179: 17 | Q179: 27 | R179: 0.8 | S179: 16.44 | T179: 0.3 | U179: 18.3
A180: 54-1т-2020 | B180: Запеканка из творога | C180: 180 | D180: 35.58 | E180: 12.81 | F180: 26.95 | G180: 361.4 | H180: 0.07 | I180: 0.38 | J180: 61.35 | K180: 0.18 | L180: 0 | M180: 217 | N180: 193 | O180: 268 | P180: 38 | Q180: 349 | R180: 1 | S180: 34.58 | T180: 47 | U180: 59.55
A181: Пром. | B181: Молоко сгущенное с сахаром | C181: 20 | D181: 1.44 | E181: 1.7 | F181: 11.1 | G181: 65.5 | H181: 0.01 | I181: 0.08 | J181: 9.4 | K181: 0 | L181: 0 | M181: 26 | N181: 73 | O181: 61 | P181: 7 | Q181: 44 | R181: 0 | S181: 1.4 | T181: 0.6 | U181: 7
A182: 54-3гн-2020 | B182: Чай с лимоном и сахаром | C182: 207 | D182: 0.2 | E182: 0.1 | F182: 6.6 | G182: 27.9 | H182: 0 | I182: 0.01 | J182: 0.38 | K182: 0 | L182: 1.16 | M182: 1.26 | N182: 30.23 | O182: 67 | P182: 4.56 | Q182: 8.52 | R182: 0.77 | S182: 0.01 | T182: 0.02 | U182: 0.7
A183: Пром. | B183: Хлеб ржаной | C183: 20 | D183: 1.3 | E183: 0.2 | F183: 6.7 | G183: 34.2 | H183: 0.04 | I183: 0.02 | J183: 0 | K183: 0 | L183: 0 | M183: 122 | N183: 49 | O183: 7 | P183: 9.4 | Q183: 31.6 | R183: 0.78 | S183: 0 | T183: 6.18 | U183: 0
A184: Пром. | B184: Хлеб пшеничный | C184: 30 | D184: 2.3 | E184: 0.2 | F184: 14.8 | G184: 70.3 | H184: 0.03 | I184: 0.01 | J184: 0 | K184: 0 | L184: 0 | M184: 149.7 | N184: 27.9 | O184: 6 | P184: 4.2 | Q184: 19.5 | R184: 0.33 | S184: 0.96 | T184: 1.8 | U184: 4.35
B185: Итого за Завтрак | C185: =SUM(C179:C184) -> 557 | D185: 42.19 | E185: 25.16 | F185: 72.18 | G185: 680.2 | H185: 0.17 | I185: 0.53 | J185: 312.76 | K185: 0.18 | L185: 12.16 | M185: 626.96 | N185: 594.13 | O185: 444 | P185: 80.16 | Q185: 479.62 | R185: 3.68 | S185: 53.39 | T185: 55.9 | U185: 89.9
B186: Итого за день | C186: =C185 -> 557 | D186: =D185 -> 42.19 | E186: =E185 -> 25.16 | F186: 72.18 | G186: 680.2 | H186: 0.17 | I186: 0.53 | J186: 312.76 | K186: 0.18 | L186: 12.16 | M186: 626.96 | N186: 594.13 | O186: 444 | P186: 80.16 | Q186: 479.62 | R186: 3.68 | S186: 53.39 | T186: 55.9 | U186: 89.9
D188: ИТОГО ПО МЕНЮ
B190: ИТОГО | C190: Пищевые вещества | F190: Энергетическая ценность | G190: Витамины | L190: Минеральные вещества
C191: Белки | D191: Жиры | E191: Углеводы | G191: B1 | H191: B2 | I191: A | J191: D | K191: C | L191: Na | M191: K | N191: Ca | O191: Mg | P191: P | Q191: Fe | R191: I | S191: Se | T191: F
C192: г | D192: г | E192: г | F192: ккал | G192: мг | H192: мг | I192: мкг рет.экв | J192: мкг | K192: мг | L192: мг | M192: мг | N192: мг | O192: мг | P192: мг | Q192: мг | R192: мкг | S192: мкг | T192: мкг
B193: Итого за весь период | C193: =D20+D35+D51+D66+D80+D110+D125+D140+D155+D170+D96+D186 -> 308.03 | D193: 317.36 | E193: 965.67 | F193: 7949.35 | G193: 2.87 | H193: 3.05 | I193: 4206.14 | J193: 1.67 | K193: 176.55 | L193: 7301.94 | M193: 8955.66 | N193: 3483.23 | O193: 1281.87 | P193: 4356.04 | Q193: 65.17 | R193: 746.01 | S193: 250.82 | T193: 1554.37
B194: Среднее значение | C194: =C193/12 -> 25.67 | D194: =D193/12 -> 26.45 | E194: 80.47 | F194: 662.45 | G194: 0.24 | H194: 0.25 | I194: 350.51 | J194: 0.14 | K194: 14.71 | L194: 608.50 | M194: 746.31 | N194: 290.27 | O194: 106.82 | P194: 363.00 | Q194: 5.43 | R194: 62.17 | S194: 20.90 | T194: 129.53
B195: Содержание белков, жиров, углеводов в меню за период в % от калорийности | C195: 15.48 | D195: =D193*9/F193*100 -> 35.93 | E195: =E193*4*100/F193 -> 48.59
C197: СУММАРНЫЕ ОБЪЕМЫ БЛЮД ПО ПРИЕМАМ ПИЩИ (В ГРАММАХ)
B199: Возраст детей | C199: Горячий завтрак
B200: 11-18 лет | C200: =(C170+C155+C140+C125+C110+C80+C66+C51+C35+C20+C186+C96)/12 -> 630
B202: Овощи для салатов (морковь, лук, капуста, картофель) урожай 2022 года
